fUST/lending_fUST_20250727
["ID","MTS","AMOUNT","RATE_DAILY","PERIOD"]
[375308350,1753621855174,-460.0,0.00022191,2]
[375308351,1753621855184,-1135.46414167,0.00022279,6]
[375308352,1753621855193,-787.72,0.000224,2]
[375308353,1753621855203,-554.9,0.00022407,5]
[375308354,1753621855213,-1135.46414167,0.00022417,7]
[375308355,1753621855222,-560.0,0.00022419,2]
[375308356,1753621855231,-460.0,0.00022465,2]
[375308357,1753621855241,-464.10826767,0.00022465,2]
[375308358,1753621855251,-1773.17,0.00022465,2]
[375308359,1753621855260,-460.0,0.00022465,2]
[375308360,1753621855270,-460.0,0.00022465,2]
[375308361,1753621855280,-460.0,0.00022465,2]
[375308362,1753621855290,-460.0,0.00022465,2]
[375308363,1753621855299,-460.0,0.00022465,2]
[375308364,1753621855308,-643.8,0.00022465,2]
[375308365,1753621855317,-460.0,0.00022465,2]
[375308366,1753621855327,-460.0,0.00022465,2]
[375308367,1753621855337,-717.4,0.00022465,2]
[375308368,1753621855346,-1470.53,0.00022465,2]
[375308369,1753621855356,-460.0,0.00022465,2]
[375308370,1753621855366,-1341.17,0.00022465,2]
[375308371,1753621855376,-460.0,0.00022465,2]
[375308372,1753621855385,-758.26,0.00022465,2]
[375308373,1753621855394,-1398.15,0.00022465,2]
[375308374,1753621855403,-460.0,0.00022465,2]
[375308375,1753621855413,-1181.14,0.00022465,2]
[375308376,1753621855422,-460.0,0.00022465,2]
[375308377,1753621855431,-876.77,0.00022465,2]
[375308378,1753621855443,-626.42,0.00022465,2]
[375308379,1753621855452,-798.85,0.00022465,2]
[375308380,1753621855462,-1015.64,0.00022465,2]
[375308381,1753621855471,-460.0,0.00022465,2]
[375308382,1753621855481,-970.76,0.00022465,2]
[375308383,1753621855490,-460.0,0.00022465,2]
[375308384,1753621855500,-518.26,0.00022465,2]
[375308385,1753621855510,-460.0,0.00022465,2]
[375308386,1753621855519,-460.0,0.00022465,2]
[375308387,1753621855528,-476.73,0.00022465,2]
[375308388,1753621855538,-460.0,0.00022465,2]
[375308389,1753621855547,-1033.91,0.00022465,2]
[375308390,1753621855557,-895.96,0.00022465,2]
[375308391,1753621855566,-460.0,0.00022465,2]
[375308392,1753621855576,-460.0,0.00022465,2]
[375308393,1753621855586,-1683.47,0.00022465,2]
[375308394,1753621855596,-300.80236473,0.00022466,2]
[375308395,1753621855606,-150.0,0.00022518,2]
[375308396,1753621855615,-150.0,0.00022525,2]
[375308397,1753621855624,-150.0,0.00022525,2]
[375308398,1753621855633,-2158.0,0.00022525,2]
[375308399,1753621855642,-969.0,0.00022525,2]
[375308400,1753621855652,-421.197,0.00022525,2]
[375308401,1753621855661,-1135.46414167,0.00022555,7]
[375308402,1753621855670,-492.48,0.00022585,2]
[375308403,1753621855679,-292.164968,0.00022603,2]
[375308404,1753621855693,-500.0,0.00022604,2]
[375308405,1753621855703,-1135.46414167,0.00022693,7]
[375308406,1753621855712,-460.0,0.00022739,2]
[375308407,1753621855722,-1773.17,0.00022739,2]
[375308408,1753621855731,-460.0,0.00022739,2]
[375308409,1753621855741,-460.0,0.00022739,2]
[375308410,1753621855750,-460.0,0.00022739,2]
[375308411,1753621855760,-460.0,0.00022739,2]
[375308412,1753621855770,-460.0,0.00022739,2]
[375308413,1753621855780,-643.8,0.00022739,2]
[375308414,1753621855789,-460.0,0.00022739,2]
[375308415,1753621855799,-460.0,0.00022739,2]
[375308416,1753621855809,-717.4,0.00022739,2]
[375308417,1753621855818,-1470.53,0.00022739,2]
[375308418,1753621855827,-460.0,0.00022739,2]
[375308419,1753621855837,-460.0,0.00022739,2]
[375308420,1753621855846,-1341.17,0.00022739,2]
[375308421,1753621855856,-758.26,0.00022739,2]
[375308422,1753621855865,-1398.15,0.00022739,2]
[375308423,1753621855875,-460.0,0.00022739,2]
[375308424,1753621855885,-1181.14,0.00022739,2]
[375308425,1753621855894,-460.0,0.00022739,2]
[375308426,1753621855903,-876.77,0.00022739,2]
[375308427,1753621855913,-626.42,0.00022739,2]
[375308428,1753621855922,-798.85,0.00022739,2]
[375308429,1753621855932,-1015.64,0.00022739,2]
[375308430,1753621855945,-460.0,0.00022739,2]
[375308431,1753621855954,-970.76,0.00022739,2]
[375308432,1753621855964,-460.0,0.00022739,2]
[375308433,1753621855973,-518.26,0.00022739,2]
[375308434,1753621855984,-460.0,0.00022739,2]
[375308435,1753621855995,-460.0,0.00022739,2]
[375308436,1753621856004,-476.73,0.00022739,2]
[375308437,1753621856015,-460.0,0.00022739,2]
[375308438,1753621856024,-1033.91,0.00022739,2]
[375308439,1753621856034,-895.96,0.00022739,2]
[375308440,1753621856044,-460.0,0.00022739,2]
[375308441,1753621856055,-460.0,0.00022739,2]
[375308442,1753621856065,-587.0,0.00022775,2]
[375308443,1753621856076,-1135.46414167,0.00022831,8]
[375308444,1753621856086,-554.9,0.00022843,5]
[375308445,1753621856096,-184.88622068,0.00022882,2]
[375308446,1753621856106,-287.27167015,0.00022967,2]
[375308447,1753621856124,-1135.46414167,0.00022969,8]
[375308448,1753621856133,-160.0,0.00023,2]
[375308449,1753621856143,-1773.17,0.00023013,2]
[375308450,1753621856152,-460.0,0.00023013,2]
[375308451,1753621856162,-460.0,0.00023013,2]
[375308452,1753621856172,-460.0,0.00023013,2]
[375308453,1753621856182,-460.0,0.00023013,2]
[375308454,1753621856194,-525.64,0.00023013,2]
[375308455,1753621856204,-643.8,0.00023013,2]
[375308456,1753621856214,-460.0,0.00023013,2]
[375308457,1753621856224,-460.0,0.00023013,2]
[375308458,1753621856233,-717.4,0.00023013,2]
[375308459,1753621856243,-1470.53,0.00023013,2]
[375308460,1753621856253,-460.0,0.00023013,2]
[375308461,1753621856263,-460.0,0.00023013,2]
[375308462,1753621856272,-1341.17,0.00023013,2]
[375308463,1753621856282,-758.26,0.00023013,2]
[375308464,1753621856292,-1398.15,0.00023013,2]
[375308465,1753621856301,-460.0,0.00023013,2]
[375308466,1753621856311,-1181.14,0.00023013,2]
[375308467,1753621856320,-460.0,0.00023013,2]
[375308468,1753621856330,-876.77,0.00023013,2]
[375308469,1753621856340,-626.42,0.00023013,2]
[375308470,1753621856351,-798.85,0.00023013,2]
[375308471,1753621856361,-1015.64,0.00023013,2]
[375308472,1753621856371,-274.0,0.00023013,2]
[375308473,1753621856381,-970.76,0.00023013,2]
[375308474,1753621856391,-460.0,0.00023013,2]
[375308475,1753621856401,-518.26,0.00023013,2]
[375308476,1753621856412,-460.0,0.00023013,2]
[375308477,1753621856421,-460.0,0.00023013,2]
[375308478,1753621856431,-476.73,0.00023013,2]
[375308479,1753621856442,-460.0,0.00023013,2]
[375308480,1753621856452,-1033.91,0.00023013,2]
[375308481,1753621856462,-895.96,0.00023013,2]
[375308482,1753621856472,-460.0,0.00023013,2]
[375308483,1753621856482,-155.2,0.00023013,2]
[375308484,1753621856492,-536.09,0.0002309,5]
[375308485,1753621856502,-514.41,0.00023096,2]
[375308486,1753621856512,-511.25,0.00023096,6]
[375308487,1753621856522,-1135.46414167,0.00023107,8]
[375308488,1753621856532,-511.07,0.00023152,3]
[375308489,1753621856545,-536.09,0.0002319,7]
[375308490,1753621856555,-514.41,0.00023196,3]
[375308491,1753621856564,-511.25,0.00023196,3]
[375308492,1753621856575,-1135.46414167,0.00023245,8]
[375308493,1753621856584,-511.08,0.00023252,4]
[375308494,1753621856594,-554.9,0.00023278,5]
[375308495,1753621856603,-1773.17,0.00023287,2]
[375308496,1753621856613,-460.0,0.00023287,2]
[375308497,1753621856622,-460.0,0.00023287,2]
[375308498,1753621856632,-309.27,0.00023287,2]
[375308499,1753621856642,-460.0,0.00023287,2]
[375308500,1753621856651,-643.8,0.00023287,2]
[375308501,1753621856661,-460.0,0.00023287,2]
[375308502,1753621856670,-460.0,0.00023287,2]
[375308503,1753621856680,-717.4,0.00023287,2]
[375308504,1753621856692,-1470.53,0.00023287,2]
[375308505,1753621856702,-460.0,0.00023287,2]
[375308506,1753621856712,-460.0,0.00023287,2]
[375308507,1753621856722,-1341.17,0.00023287,2]
[375308508,1753621856731,-758.26,0.00023287,2]
[375308509,1753621856742,-1398.15,0.00023287,2]
[375308510,1753621856751,-460.0,0.00023287,2]
[375308511,1753621856761,-1181.14,0.00023287,2]
[375308512,1753621856771,-361.12,0.00023287,2]
[375308513,1753621856781,-876.77,0.00023287,2]
[375308514,1753621856791,-626.42,0.00023287,2]
[375308515,1753621856801,-798.85,0.00023287,2]
[375308516,1753621856811,-1015.64,0.00023287,2]
[375308517,1753621856820,-970.76,0.00023287,2]
[375308518,1753621856830,-495.76,0.00023287,2]
[375308519,1753621856840,-518.26,0.00023287,2]
[375308520,1753621856850,-460.0,0.00023287,2]
[375308521,1753621856859,-281.44,0.00023287,2]
[375308522,1753621856869,-476.73,0.00023287,2]
[375308523,1753621856880,-460.0,0.00023287,2]
[375308524,1753621856889,-1033.91,0.00023287,2]
[375308525,1753621856899,-895.96,0.00023287,2]
[375308526,1753621856909,-460.0,0.00023287,2]
[375308527,1753621856919,-536.09,0.0002329,7]
[375308528,1753621856929,-511.25,0.00023296,7]
[375308529,1753621856940,-3542.98,0.000233,7]
[375308530,1753621856950,-23783.67,0.000233,2]
[375308531,1753621856960,-724.98,0.000233,7]
[375308532,1753621856970,-2587.49,0.000233,7]
[375308533,1753621856980,-1087.42991681,0.00023383,9]
[375308534,1753621857091,-48.03422486,0.00023383,9]
[375308535,1753621857102,-88.92389945,0.0002339,6]
[375308536,1753621857318,-460.0,0.00019452,2]
[375308537,1753621857327,-460.0,0.00019726,2]
[375308538,1753621857336,-460.0,0.0002,2]
[375308539,1753621857345,-460.0,0.00020273,2]
[375308540,1753621857355,-460.0,0.00020547,2]
[375308541,1753621857364,-337.88994605,0.00020821,2]
[375308542,1753621857376,-122.11005395,0.00020821,2]
[375308543,1753621857385,-460.0,0.00021095,2]
[375308544,1753621857395,-460.0,0.00021369,2]
[375308545,1753621857404,-379.07040875,0.00021643,2]
[375308546,1753621857438,-80.92959125,0.00021643,2]
[375308547,1753621857448,-460.0,0.00021643,2]
[375308548,1753621857458,-96.63854304,0.00021917,2]
[375308549,1753621857699,-460.0,0.00019178,2]
[375308550,1753621857709,-460.0,0.00019178,2]
[375308551,1753621857718,-460.0,0.00019178,2]
[375308552,1753621857727,-460.0,0.00019452,2]
[375308553,1753621857737,-308.04,0.00019452,2]
[375308554,1753621857747,-460.0,0.00019452,2]
[375308555,1753621857756,-460.0,0.00019726,2]
[375308556,1753621857766,-460.0,0.00019726,2]
[375308557,1753621857775,-460.0,0.0002,2]
[375308558,1753621857785,-460.0,0.0002,2]
[375308559,1753621857795,-460.0,0.00020273,2]
[375308560,1753621857804,-363.36145696,0.00021917,2]
[375308561,1753621857814,-460.0,0.00021917,2]
[375308562,1753621857824,-460.0,0.00022191,2]
[375308563,1753621857833,-460.0,0.00022191,2]
[375308564,1753621857842,-460.0,0.00022465,2]
[375308565,1753621857852,-460.0,0.00022465,2]
[375308566,1753621857861,-460.0,0.00022739,2]
[375308567,1753621857871,-460.0,0.00022739,2]
[375308568,1753621857880,-558.53398009,0.00023013,2]
[375308569,1753621857893,-47.47601991,0.00023013,2]
[375308570,1753621857902,-594.96,0.00023013,2]
[375308571,1753621857911,-447.16610055,0.0002339,6]
[375308572,1753621857921,-511.25,0.00023396,3]
[375308573,1753621857930,-574.56,0.00023454,2]
[375308574,1753621857941,-536.09,0.0002349,4]
[375308575,1753621857950,-511.25,0.00023496,4]
[375308576,1753621857960,-265.0,0.00023518,2]
[375308577,1753621857969,-836.24787954,0.00023521,9]
[375308578,1753621858021,-0.65991134,0.00023521,9]
[375308580,1753621880971,150.0,0.00018214,2]
[375308585,1753621964265,150.0,0.00018229,2]
[375308587,1753622024867,11251.4240956,0.00018452,2]
[375308588,1753622024892,13648.5759044,0.00018452,2]
[375308589,1753622043800,150.0,0.00018285,2]
[375308591,1753622058462,431.032399,0.00013699,2]
[375308592,1753622126244,150.0,0.00018265,2]
[375308593,1753622208171,150.0,0.00018271,2]
[375308594,1753622287285,150.0,0.00018273,2]
[375308596,1753622363750,150.0,0.00018263,2]
[375308597,1753622416134,3725.99999999,0.0001851,2]
[375308598,1753622442039,150.0,0.00018272,2]
[375308599,1753622522836,150.0,0.00018252,2]
[375308600,1753622566369,1144.39169661,0.00018246,2]
[375308601,1753622566395,1061.23854809,0.00018246,2]
[375308602,1753622607648,150.0,0.00018239,2]
[375308603,1753622689564,150.0,0.0001832,2]
[375308609,1753622772739,150.0,0.00018306,2]
[375308611,1753622854351,150.0,0.00018406,2]
[375308615,1753622946156,-166.55698334,0.00019078,2]
[375308616,1753622946181,-3008.08033349,0.00019078,2]
[375308617,1753622946205,-2062.74392513,0.00019175,2]
[375308673,1753623032459,-1130.93883905,0.000189,2]
[375308683,1753623032518,-213.21607459,0.000189,2]
[375308685,1753623032527,-107.84522585,0.00019077,2]
[375308693,1753623032589,-192.15477415,0.00019077,2]
[375308695,1753623032599,-17149.61761371,0.00019078,2]
[375308954,1753623038404,-3229.8561733,0.00019078,2]
[375308955,1753623038414,-858.23409066,0.00019175,2]
[375308956,1753623038423,-21336.2345968,0.00019177,7]
[375308957,1753623038433,-312.16666667,0.00019177,7]
[375308958,1753623038443,-157.7539691,0.00019177,2]
[375308959,1753623038452,-460.0,0.00019178,2]
[375308960,1753623038462,-460.0,0.00019178,2]
[375308961,1753623038472,-460.0,0.00019178,2]
[375308962,1753623038481,-460.0,0.00019178,2]
[375308963,1753623038491,-460.0,0.00019178,2]
[375308964,1753623038501,-461.24290984,0.00019178,2]
[375308965,1753623038510,-460.0,0.00019178,2]
[375308966,1753623038519,-460.0,0.00019178,2]
[375308967,1753623038529,-460.0,0.00019178,2]
[375308968,1753623038539,-460.0,0.00019178,2]
[375308969,1753623038548,-460.0,0.00019178,2]
[375308970,1753623038558,-460.0,0.00019178,2]
[375308971,1753623038567,-460.0,0.00019178,2]
[375308972,1753623038576,-460.0,0.00019178,2]
[375308974,1753623038586,-470.29330632,0.00019178,2]
[375308976,1753623038596,-460.0,0.00019178,2]
[375308978,1753623038605,-460.0,0.00019178,2]
[375308980,1753623038614,-460.0,0.00019178,2]
[375308982,1753623038623,-460.0,0.00019178,2]
[375308984,1753623038633,-460.0,0.00019178,2]
[375308986,1753623038642,-460.0,0.00019178,2]
[375308988,1753623038651,-320.07941069,0.00019178,2]
[375308990,1753623038660,-460.0,0.00019178,2]
[375308992,1753623038670,-460.0,0.00019178,2]
[375308993,1753623038679,-461.94036111,0.00019178,2]
[375308994,1753623038688,-510.14765728,0.00019178,2]
[375308995,1753623038697,-460.0,0.00019178,2]
[375308996,1753623038707,-564.67334969,0.00019178,2]
[375308997,1753623038716,-298.93524801,0.00019178,2]
[375308998,1753623038726,-460.0,0.00019178,2]
[375308999,1753623038735,-460.0,0.00019178,2]
[375309000,1753623038744,-308.62502136,0.00019178,2]
[375309001,1753623038753,-460.0,0.00019178,2]
[375309002,1753623038762,-460.0,0.00019178,2]
[375309003,1753623038771,-460.0,0.00019178,2]
[375309004,1753623038781,-460.0,0.00019178,2]
[375309005,1753623038790,-460.0,0.00019178,2]
[375309006,1753623038799,-460.0,0.00019178,2]
[375309007,1753623038809,-460.0,0.00019178,2]
[375309008,1753623038818,-460.0,0.00019178,2]
[375309009,1753623038828,-460.0,0.00019178,2]
[375309010,1753623038838,-460.0,0.00019178,2]
[375309011,1753623038847,-1629.45,0.00019178,2]
[375309012,1753623038857,-464.10826767,0.00019178,2]
[375309013,1753623038866,-460.0,0.00019178,2]
[375309014,1753623038876,-460.0,0.00019178,2]
[375309015,1753623038885,-460.0,0.00019178,2]
[375309016,1753623038894,-460.0,0.00019178,2]
[375309017,1753623038904,-460.0,0.00019178,2]
[375309018,1753623038913,-460.0,0.00019178,2]
[375309019,1753623038923,-460.0,0.00019178,2]
[375309020,1753623038932,-543.93,0.00019178,2]
[375309021,1753623038942,-460.0,0.00019178,2]
[375309022,1753623038952,-460.0,0.00019178,2]
[375309023,1753623038962,-460.0,0.00019178,2]
[375309024,1753623038971,-460.0,0.00019178,2]
[375309025,1753623038980,-460.0,0.00019178,2]
[375309026,1753623038989,-460.0,0.00019178,2]
[375309027,1753623038999,-460.0,0.00019178,2]
[375309028,1753623039008,-460.0,0.00019178,2]
[375309029,1753623039018,-460.0,0.00019178,2]
[375309030,1753623039027,-460.0,0.00019178,2]
[375309031,1753623039036,-460.0,0.00019178,2]
[375309032,1753623039046,-460.0,0.00019178,2]
[375309033,1753623039055,-460.0,0.00019178,2]
[375309034,1753623039064,-460.0,0.00019178,2]
[375309035,1753623039074,-295.07730477,0.00019178,2]
[375309036,1753623039083,-460.0,0.00019178,2]
[375309037,1753623039093,-460.0,0.00019178,2]
[375309038,1753623039102,-460.0,0.00019178,2]
[375309039,1753623039112,-460.0,0.00019178,2]
[375309040,1753623039121,-598.47,0.00019178,2]
[375309041,1753623039131,-63.50477776,0.00019178,2]
[375309042,1753623039144,-396.49522224,0.00019178,2]
[375309043,1753623039154,-460.0,0.00019178,2]
[375309044,1753623039163,-460.0,0.00019178,2]
[375309045,1753623039173,-460.0,0.00019178,2]
[375309046,1753623039182,-460.0,0.00019178,2]
[375309047,1753623039191,-460.0,0.00019178,2]
[375309048,1753623039201,-460.0,0.00019178,2]
[375309049,1753623039210,-460.0,0.00019178,2]
[375309050,1753623039219,-460.0,0.00019178,2]
[375309051,1753623039229,-460.0,0.00019178,2]
[375309052,1753623039239,-460.0,0.00019178,2]
[375309053,1753623039248,-460.0,0.00019178,2]
[375309054,1753623039258,-460.0,0.00019178,2]
[375309055,1753623039267,-460.0,0.00019178,2]
[375309056,1753623039277,-460.0,0.00019178,2]
[375309057,1753623039287,-460.0,0.00019178,2]
[375309058,1753623039300,-460.0,0.00019178,2]
[375309059,1753623039310,-1114.75034257,0.00019178,2]
[375309060,1753623039326,-1940.25965743,0.00019178,2]
[375309061,1753623039337,-460.0,0.00019178,2]
[375309062,1753623039346,-460.0,0.00019178,2]
[375309063,1753623039356,-460.0,0.00019178,2]
[375309064,1753623039368,-460.0,0.00019178,2]
[375309065,1753623039379,-460.0,0.00019178,2]
[375309066,1753623039388,-460.0,0.00019178,2]
[375309067,1753623039397,-460.0,0.00019178,2]
[375309068,1753623039407,-460.0,0.00019178,2]
[375309069,1753623039417,-460.0,0.00019178,2]
[375309070,1753623039426,-460.0,0.00019178,2]
[375309071,1753623039437,-881.47,0.00019178,2]
[375309072,1753623039446,-401.09418904,0.00019178,2]
[375309073,1753623039456,-460.0,0.00019178,2]
[375309074,1753623039466,-460.0,0.00019178,2]
[375309075,1753623039475,-470.67,0.00019178,2]
[375309076,1753623039485,-460.0,0.00019178,2]
[375309077,1753623039494,-551.68,0.00019178,2]
[375309078,1753623039503,-460.0,0.00019178,2]
[375309079,1753623039513,-460.0,0.00019178,2]
[375309080,1753623039522,-460.0,0.00019178,2]
[375309081,1753623039532,-680.2,0.00019178,2]
[375309082,1753623039542,-460.0,0.00019178,2]
[375309083,1753623039551,-460.0,0.00019178,2]
[375309084,1753623039561,-460.0,0.00019178,2]
[375309085,1753623039570,-460.0,0.00019178,2]
[375309086,1753623039581,-460.0,0.00019178,2]
[375309087,1753623039590,-460.0,0.00019178,2]
[375309088,1753623039599,-702.74,0.00019178,2]
[375309089,1753623039609,-460.0,0.00019178,2]
[375309090,1753623039619,-460.0,0.00019178,2]
[375309091,1753623039628,-756.66,0.00019178,2]
[375309092,1753623039637,-471.68642377,0.00019178,2]
[375309093,1753623039647,-460.0,0.00019178,2]
[375309094,1753623039656,-460.0,0.00019178,2]
[375309095,1753623039666,-698.98,0.00019178,2]
[375309096,1753623039675,-460.0,0.00019178,2]
[375309097,1753623039685,-460.0,0.00019178,2]
[375309098,1753623039694,-460.0,0.00019178,2]
[375309099,1753623039703,-460.0,0.00019178,2]
[375309100,1753623039713,-460.0,0.00019178,2]
[375309103,1753623039722,-460.0,0.00019178,2]
[375309105,1753623039731,-460.0,0.00019178,2]
[375309107,1753623039740,-460.0,0.00019178,2]
[375309109,1753623039750,-460.0,0.00019178,2]
[375309111,1753623039759,-460.0,0.00019178,2]
[375309113,1753623039768,-460.0,0.00019178,2]
[375309114,1753623039778,-835.27,0.00019178,2]
[375309115,1753623039787,-460.0,0.00019178,2]
[375309116,1753623039796,-460.0,0.00019178,2]
[375309117,1753623039806,-460.0,0.00019178,2]
[375309133,1753623039951,-460.0,0.00019178,2]
[375309135,1753623039961,-460.0,0.00019178,2]
[375309137,1753623039971,-512.65,0.00019178,2]
[375309139,1753623039981,-460.0,0.00019178,2]
[375309141,1753623039990,-460.0,0.00019178,2]
[375309143,1753623039999,-460.0,0.00019178,2]
[375309145,1753623040009,-460.0,0.00019178,2]
[375309147,1753623040018,-460.0,0.00019178,2]
[375309150,1753623040028,-460.0,0.00019178,2]
[375309151,1753623040037,-460.0,0.00019178,2]
[375309154,1753623040047,-460.0,0.00019178,2]
[375309156,1753623040057,-757.32,0.00019178,2]
[375309158,1753623040066,-388.26561552,0.00019178,2]
[375309160,1753623040075,-460.0,0.00019178,2]
[375309161,1753623040084,-460.0,0.00019178,2]
[375309164,1753623040093,-460.0,0.00019178,2]
[375309166,1753623040103,-460.0,0.00019178,2]
[375309168,1753623040112,-460.0,0.00019178,2]
[375309171,1753623040121,-1484.05,0.00019178,2]
[375309174,1753623040130,-460.0,0.00019178,2]
[375309176,1753623040140,-460.0,0.00019178,2]
[375309179,1753623040149,-460.0,0.00019178,2]
[375309183,1753623040159,-273.284244,0.00019178,2]
[375309184,1753623040169,-666.0,0.00019178,2]
[375309186,1753623040178,-462.12399268,0.00019451,2]
[375309188,1753623040188,-460.0,0.00019451,2]
[375309190,1753623040197,-460.0,0.00019451,2]
[375309192,1753623040207,-856.62,0.00019451,2]
[375309194,1753623040216,-363.13123283,0.00019451,2]
[375309196,1753623040225,-460.0,0.00019451,2]
[375309198,1753623040234,-460.0,0.00019451,2]
[375309200,1753623040244,-462.76477205,0.00019452,2]
[375309201,1753623040253,-460.0,0.00019452,2]
[375309202,1753623040262,-460.0,0.00019452,2]
[375309204,1753623040272,-466.5537278,0.00019452,2]
[375309205,1753623040281,-460.0,0.00019452,2]
[375309206,1753623040291,-460.0,0.00019452,2]
[375309207,1753623040302,-460.0,0.00019452,2]
[375309208,1753623040311,-460.0,0.00019452,2]
[375309210,1753623040320,-460.0,0.00019452,2]
[375309211,1753623040331,-460.0,0.00019452,2]
[375309212,1753623040340,-460.0,0.00019452,2]
[375309214,1753623040349,-460.0,0.00019452,2]
[375309216,1753623040359,-460.0,0.00019452,2]
[375309218,1753623040369,-460.0,0.00019452,2]
[375309220,1753623040379,-460.0,0.00019452,2]
[375309221,1753623040388,-460.0,0.00019452,2]
[375309224,1753623040398,-460.0,0.00019452,2]
[375309225,1753623040407,-460.0,0.00019452,2]
[375309227,1753623040416,-460.0,0.00019452,2]
[375309230,1753623040426,-460.0,0.00019452,2]
[375309233,1753623040436,-460.0,0.00019452,2]
[375309235,1753623040445,-460.0,0.00019452,2]
[375309237,1753623040454,-460.0,0.00019452,2]
[375309239,1753623040464,-460.0,0.00019452,2]
[375309241,1753623040474,-460.0,0.00019452,2]
[375309243,1753623040483,-460.0,0.00019452,2]
[375309245,1753623040493,-470.08743074,0.00019452,2]
[375309247,1753623040503,-1629.45,0.00019452,2]
[375309249,1753623040512,-460.0,0.00019452,2]
[375309251,1753623040522,-296.18,0.00019452,2]
[375309253,1753623040531,-460.0,0.00019452,2]
[375309255,1753623040541,-460.0,0.00019452,2]
[375309257,1753623040551,-460.0,0.00019452,2]
[375309259,1753623040561,-460.0,0.00019452,2]
[375309261,1753623040570,-543.93,0.00019452,2]
[375309263,1753623040579,-460.0,0.00019452,2]
[375309265,1753623040589,-460.0,0.00019452,2]
[375309267,1753623040598,-460.0,0.00019452,2]
[375309269,1753623040608,-460.0,0.00019452,2]
[375309271,1753623040617,-460.0,0.00019452,2]
[375309273,1753623040627,-460.0,0.00019452,2]
[375309275,1753623040636,-460.0,0.00019452,2]
[375309277,1753623040645,-471.02009623,0.00019452,2]
[375309279,1753623040654,-460.0,0.00019452,2]
[375309281,1753623040663,-368.81,0.00019452,2]
[375309283,1753623040673,-460.0,0.00019452,2]
[375309285,1753623040682,-460.0,0.00019452,2]
[375309287,1753623040694,-460.0,0.00019452,2]
[375309289,1753623040703,-460.0,0.00019452,2]
[375309291,1753623040712,-460.0,0.00019452,2]
[375309293,1753623040721,-460.0,0.00019452,2]
[375309295,1753623040731,-460.0,0.00019452,2]
[375309297,1753623040740,-598.47,0.00019452,2]
[375309299,1753623040749,-460.0,0.00019452,2]
[375309301,1753623040759,-460.0,0.00019452,2]
[375309303,1753623040768,-460.0,0.00019452,2]
[375309305,1753623040777,-460.0,0.00019452,2]
[375309307,1753623040787,-460.0,0.00019452,2]
[375309309,1753623040796,-460.0,0.00019452,2]
[375309311,1753623040806,-460.0,0.00019452,2]
[375309313,1753623040815,-460.0,0.00019452,2]
[375309315,1753623040824,-460.0,0.00019452,2]
[375309317,1753623040834,-460.0,0.00019452,2]
[375309319,1753623040843,-460.0,0.00019452,2]
[375309321,1753623040853,-284.02,0.00019452,2]
[375309323,1753623040862,-460.0,0.00019452,2]